{"text_format":"1","workbook":"xlsx","n_sheets":1,"sheets":["EAEPE_CA_DEP"],"not_rendered":{"charts":0,"images":0,"macros":1,"external_links":0,"defined_names":4,"comments":0,"pivot_tables":0},"unopened":[],"bounds":{"document_bytes":16777216,"sheet_cells":100000,"rows_first":2000,"rows_last":500,"rows_between":2000,"halvings":0,"cell_chars":16384,"cell_head_chars":4096},"cells_cut":0,"cells_raw":0,"read":"whole","date_system":"1900"}

{"sheet":"EAEPE_CA_DEP","index":0,"n_rows":34,"n_cols":8,"rows_kept":34,"cut":false,"hidden":false,"merged":[[1,1,1,7],[2,1,2,7],[3,1,3,7],[4,1,4,7],[5,1,7,1],[5,2,5,6],[5,7,6,7]]}
[]
[null,"SUBSISTEMA DE PREPARATORIA ABIERTA Y TELEBACHILLERATO DEL ESTADO DE CHIHUAHUA"]
[null,"Estado Analítico del Ejercicio del Presupuesto de Egresos "]
[null,"Clasificación Administrativa"]
[null,"Del 01 de enero al 31 de diciembre del 2024"]
[null,"Concepto","Egresos",null,null,null,null,"Subejercicio "]
[null,null,"Aprobado ","Ampliaciones/ (Reducciones) ","Modificado ","Devengado","Pagado "]
[null,null,1,2,"3 = (1+2)",4,5,"6 = ( 3 - 4)"]
[]
[null,"Subsistema de Preparatoria Abierta y Telebachillerato del Estado de Chihuahua",258648670.09,33572547.509999998,{"$f":"C10+D10","v":292221217.60000002},261772088.19999999,{"$f":"+F10","v":261772088.19999999},{"$f":"E10-F10","v":30449129.400000036}]
[null,"Dependencia o Unidad Administrativa 2",0,0,{"$f":"C11+D11","v":0},0,0,0]
[null,"Dependencia o Unidad Administrativa 3",0,0,0,0,0,0]
[null,"Dependencia o Unidad Administrativa 4",0,0,{"$f":"C13+D13","v":0},0,0,0]
[null,"Dependencia o Unidad Administrativa 5",0,0,0,0,0,0]
[null,"Dependencia o Unidad Administrativa 6",0,0,0,0,0,0]
[null,"Dependencia o Unidad Administrativa 7",0,0,0,0,0,0]
[null,"Dependencia o Unidad Administrativa 8",0,0,0,0,0,0]
[null,"Dependencia o Unidad Administrativa XX",0,0,0,0,0,0]
[]
[null,"Total del Gasto ",{"$f":"SUM(C9:C19)","v":258648670.09},{"$f":"SUM(D9:D19)","v":33572547.509999998},{"$f":"SUM(C20,D20)","v":292221217.60000002},{"$f":"SUM(F9:F19)","v":261772088.19999999},{"$f":"SUM(G9:G19)","v":261772088.19999999},{"$f":"E20-F20","v":30449129.400000036}]
[]
[null,"Bajo protesta de decir la verdad declaramos que los Estados Financieros y sus Notas son razonablemente correctos y responsabilidad del emisor."]
[]
[]
[]
[]
[null,"                     M.C. Socorro Olivas Loya",null,null,"Mtra. Almendra del Carmen Piñon Cano"]
[null,"                           Director General",null,null,"             Directora Administrativa"]
[]
[]
[]
[]
[null,"             C. Fernanda Paola Soto Tarango",null,null,"C.P. Viena Georgina Covarrubias Ordóñez"]
[null,"                        Area de presupuesto ",null,null,"    Jefe Depto de Recursos Financieros"]